[Event "Titled Tuesday Blitz May 11 2021"]
[White "Holt, Conrad"]
[Black "Oliveira, Silvio Eduardo"]
[WhiteFideId "2034387"]
[BlackFideId "2111560"]
[WhiteElo "2586"]
[BlackElo "2302"]
[Result "0-1"]
[Round "03"]
[TimeControl "180+1"]
[Date "2021.05.11"]
[WhiteClock "0:00:09"]
[BlackClock "0:01:00"]

1. d4 {[%clk 0:03:00]}  Nf6 {[%clk 0:02:59]} 2. c4 {[%clk 0:03:01]}  e6 {[%clk 0:02:59]} 3. Nc3 {[%clk 0:03:01]}  d5 {[%clk 0:03:00]} 4. cxd5 {[%clk 0:03:01]}  exd5 {[%clk 0:03:00]} 5. Bg5 {[%clk 0:03:01]}  c6 {[%clk 0:03:00]} 6. e3 {[%clk 0:03:00]}  h6 {[%clk 0:03:01]} 7. Bh4 {[%clk 0:02:59]}  Be7 {[%clk 0:03:01]} 8. Qc2 {[%clk 0:02:56]}  O-O {[%clk 0:03:01]} 9. Bd3 {[%clk 0:02:56]}  Re8 {[%clk 0:03:01]} 10. Nge2 {[%clk 0:02:55]}  Nh5 {[%clk 0:03:01]} 11. Bxe7 {[%clk 0:02:54]}  Qxe7 {[%clk 0:03:02]} 12. O-O {[%clk 0:02:54]}  Nd7 {[%clk 0:03:02]} 13. Rae1 {[%clk 0:02:53]}  Nf8 {[%clk 0:02:59]} 14. Nc1 {[%clk 0:02:52]}  Be6 {[%clk 0:02:53]} 15. Nb3 {[%clk 0:02:50]}  Rad8 {[%clk 0:02:54]} 16. f3 {[%clk 0:02:46]}  Bc8 {[%clk 0:02:51]} 17. Qf2 {[%clk 0:02:40]}  b6 {[%clk 0:02:47]} 18. e4 {[%clk 0:02:38]}  Nf4 {[%clk 0:02:45]} 19. Bb1 {[%clk 0:02:35]}  Ba6 {[%clk 0:02:42]} 20. e5 {[%clk 0:02:26]}  Bxf1 {[%clk 0:02:40]} 21. Qxf1 {[%clk 0:02:26]}  N4e6 {[%clk 0:02:36]} 22. f4 {[%clk 0:02:24]}  c5 {[%clk 0:02:31]} 23. Qf3 {[%clk 0:02:15]}  Nxd4 {[%clk 0:02:27]} 24. Nxd4 {[%clk 0:02:15]}  cxd4 {[%clk 0:02:28]} 25. Nxd5 {[%clk 0:02:15]}  Qc5 {[%clk 0:02:17]} 26. Nf6+ {[%clk 0:01:47]}  gxf6 {[%clk 0:02:02]} 27. Qg4+ {[%clk 0:01:47]}  Kh8 {[%clk 0:01:57]} 28. Bd3 {[%clk 0:01:46]}  fxe5 {[%clk 0:01:50]} 29. fxe5 {[%clk 0:01:32]}  Rxe5 {[%clk 0:01:44]} 30. Rf1 {[%clk 0:01:32]}  Rde8 {[%clk 0:01:39]} 31. Rxf7 {[%clk 0:00:46]}  Re1+ {[%clk 0:01:33]} 32. Kf2 {[%clk 0:00:45]}  Qg5 {[%clk 0:01:29]} 33. Qxd4+ {[%clk 0:00:44]}  Qe5 {[%clk 0:01:13]} 34. Qxe5+ {[%clk 0:00:21]}  R1xe5 {[%clk 0:01:11]} 35. Rxa7 {[%clk 0:00:21]}  Ne6 {[%clk 0:01:10]} 36. g3 {[%clk 0:00:13]}  Nc5 {[%clk 0:01:05]} 37. Bb5 {[%clk 0:00:12]}  Ne4+ {[%clk 0:01:03]} 38. Kf3 {[%clk 0:00:12]}  Rxb5 {[%clk 0:01:03]} 39. b3 {[%clk 0:00:10]}  Rf5+ {[%clk 0:01:01]} 40. Kg4 {[%clk 0:00:09]}  Rf6 {[%clk 0:01:00]} 0-1


[Site "https://www.chess.com"]

[Event "Titled Tuesday Blitz May 11 2021"]
[White "Ibrahimli, Murad"]
[Black "Nozdrachev, Leonid"]
[WhiteFideId "13410229"]
[BlackFideId "24113433"]
[WhiteElo "2109"]
[BlackElo "2246"]
[Result "1-0"]
[Round "03"]
[TimeControl "180+1"]
[Date "2021.05.11"]
[WhiteClock "0:01:13"]
[BlackClock "0:00:01"]

1. Nf3 {[%clk 0:03:00]}  Nf6 {[%clk 0:02:59]} 2. d4 {[%clk 0:03:01]}  e6 {[%clk 0:02:58]} 3. Bg5 {[%clk 0:03:01]}  b6 {[%clk 0:02:55]} 4. Nbd2 {[%clk 0:03:01]}  h6 {[%clk 0:02:54]} 5. Bh4 {[%clk 0:03:00]}  Bb7 {[%clk 0:02:54]} 6. e3 {[%clk 0:02:59]}  c5 {[%clk 0:02:50]} 7. c3 {[%clk 0:02:58]}  Nc6 {[%clk 0:02:49]} 8. Bd3 {[%clk 0:02:50]}  Be7 {[%clk 0:02:47]} 9. O-O {[%clk 0:02:49]}  O-O {[%clk 0:02:46]} 10. a3 {[%clk 0:02:49]}  d6 {[%clk 0:02:43]} 11. Re1 {[%clk 0:02:47]}  e5 {[%clk 0:02:42]} 12. dxe5 {[%clk 0:02:46]}  Nxe5 {[%clk 0:02:35]} 13. Nxe5 {[%clk 0:02:45]}  dxe5 {[%clk 0:02:36]} 14. Bxf6 {[%clk 0:02:45]}  Bxf6 {[%clk 0:02:32]} 15. Be4 {[%clk 0:02:44]}  Qd7 {[%clk 0:02:25]} 16. Bxb7 {[%clk 0:02:43]}  Qxb7 {[%clk 0:02:26]} 17. Qc2 {[%clk 0:02:41]}  Rad8 {[%clk 0:02:21]} 18. Ne4 {[%clk 0:02:40]}  Be7 {[%clk 0:02:19]} 19. c4 {[%clk 0:02:40]}  f5 {[%clk 0:02:07]} 20. Nc3 {[%clk 0:02:39]}  e4 {[%clk 0:02:06]} 21. Nd5 {[%clk 0:02:39]}  Bf6 {[%clk 0:02:00]} 22. Rad1 {[%clk 0:02:38]}  Kh8 {[%clk 0:01:53]} 23. g3 {[%clk 0:02:37]}  Be5 {[%clk 0:01:46]} 24. b4 {[%clk 0:02:30]}  cxb4 {[%clk 0:01:24]} 25. axb4 {[%clk 0:02:30]}  Rf7 {[%clk 0:01:23]} 26. b5 {[%clk 0:02:27]}  Rfd7 {[%clk 0:01:22]} 27. Nb4 {[%clk 0:02:26]}  Rxd1 {[%clk 0:01:04]} 28. Rxd1 {[%clk 0:02:27]}  Rxd1+ {[%clk 0:01:03]} 29. Qxd1 {[%clk 0:02:27]}  Qf7 {[%clk 0:00:46]} 30. Nc6 {[%clk 0:02:14]}  Bf6 {[%clk 0:00:11]} 31. Qd5 {[%clk 0:02:13]}  Qh5 {[%clk 0:00:09]} 32. Nxa7 {[%clk 0:02:04]}  Qf3 {[%clk 0:00:07]} 33. Nc8 {[%clk 0:01:55]}  h5 {[%clk 0:00:07]} 34. h4 {[%clk 0:01:28]}  f4 {[%clk 0:00:06]} 35. exf4 {[%clk 0:01:26]}  Bc3 {[%clk 0:00:02]} 36. Nd6 {[%clk 0:01:21]}  Be1 {[%clk 0:00:01]} 37. Nf7+ {[%clk 0:01:13]} 1-0


[Site "https://www.chess.com"]

[Event "Titled Tuesday Blitz May 11 2021"]
[White "Ivanisevic, Ivan"]
[Black "Praggnanandhaa R"]
[WhiteFideId "912417"]
[BlackFideId "25059530"]
[WhiteElo "2499"]
[BlackElo "2555"]
[Result "0-1"]
[Round "03"]
[TimeControl "180+1"]
[Date "2021.05.11"]
[WhiteClock "0:00:08"]
[BlackClock "0:00:06"]

1. d4 {[%clk 0:03:00]}  Nf6 {[%clk 0:02:59]} 2. c4 {[%clk 0:03:01]}  Nc6 {[%clk 0:03:00]} 3. Nc3 {[%clk 0:02:59]}  e5 {[%clk 0:02:58]} 4. d5 {[%clk 0:02:59]}  Ne7 {[%clk 0:02:58]} 5. e4 {[%clk 0:02:58]}  Ng6 {[%clk 0:02:57]} 6. a3 {[%clk 0:02:59]}  a5 {[%clk 0:02:52]} 7. Be3 {[%clk 0:02:57]}  b6 {[%clk 0:02:44]} 8. f3 {[%clk 0:02:54]}  Bc5 {[%clk 0:02:43]} 9. Qd2 {[%clk 0:02:55]}  O-O {[%clk 0:02:42]} 10. O-O-O {[%clk 0:02:44]}  d6 {[%clk 0:02:41]} 11. g3 {[%clk 0:02:39]}  Nd7 {[%clk 0:02:40]} 12. h4 {[%clk 0:01:57]}  h5 {[%clk 0:02:15]} 13. Nge2 {[%clk 0:01:40]}  Bxe3 {[%clk 0:02:09]} 14. Qxe3 {[%clk 0:01:41]}  Nc5 {[%clk 0:02:09]} 15. g4 {[%clk 0:01:28]}  hxg4 {[%clk 0:01:48]} 16. h5 {[%clk 0:01:29]}  Nf4 {[%clk 0:01:49]} 17. Nxf4 {[%clk 0:01:26]}  exf4 {[%clk 0:01:49]} 18. Qxf4 {[%clk 0:01:26]}  f5 {[%clk 0:01:50]} 19. e5 {[%clk 0:01:18]}  dxe5 {[%clk 0:01:43]} 20. Qxe5 {[%clk 0:01:19]}  Qd6 {[%clk 0:01:07]} 21. f4 {[%clk 0:01:03]}  Bd7 {[%clk 0:00:40]} 22. Bg2 {[%clk 0:00:33]}  Rae8 {[%clk 0:00:36]} 23. Qxd6 {[%clk 0:00:33]}  cxd6 {[%clk 0:00:37]} 24. b4 {[%clk 0:00:33]}  axb4 {[%clk 0:00:34]} 25. axb4 {[%clk 0:00:33]}  Na6 {[%clk 0:00:35]} 26. b5 {[%clk 0:00:30]}  Nc5 {[%clk 0:00:33]} 27. Kd2 {[%clk 0:00:29]}  Ra8 {[%clk 0:00:30]} 28. h6 {[%clk 0:00:26]}  Rfe8 {[%clk 0:00:23]} 29. hxg7 {[%clk 0:00:25]}  Kxg7 {[%clk 0:00:23]} 30. Rh5 {[%clk 0:00:25]}  Rh8 {[%clk 0:00:22]} 31. Rdh1 {[%clk 0:00:19]}  Rxh5 {[%clk 0:00:22]} 32. Rxh5 {[%clk 0:00:20]}  Ra3 {[%clk 0:00:16]} 33. Rh1 {[%clk 0:00:19]}  Nb3+ {[%clk 0:00:07]} 34. Kc2 {[%clk 0:00:18]}  Na5 {[%clk 0:00:06]} 35. Kd3 {[%clk 0:00:17]}  Rb3 {[%clk 0:00:06]} 36. Re1 {[%clk 0:00:17]}  Kf6 {[%clk 0:00:05]} 37. Bf1 {[%clk 0:00:15]}  Rb4 {[%clk 0:00:04]} 38. Kd4 {[%clk 0:00:14]}  Nb3+ {[%clk 0:00:05]} 39. Kd3 {[%clk 0:00:14]}  Nc5+ {[%clk 0:00:05]} 40. Kc2 {[%clk 0:00:15]}  Nb3 {[%clk 0:00:04]} 41. Kd3 {[%clk 0:00:13]}  Na5 {[%clk 0:00:04]} 42. Kd4 {[%clk 0:00:12]}  Rb2 {[%clk 0:00:04]} 43. Re2 {[%clk 0:00:11]}  Nb3+ {[%clk 0:00:03]} 44. Kd3 {[%clk 0:00:11]}  Nc1+ {[%clk 0:00:03]} 45. Ke3 {[%clk 0:00:10]}  Nxe2 {[%clk 0:00:04]} 46. Bxe2 {[%clk 0:00:10]}  Rc2 {[%clk 0:00:04]} 47. Kd3 {[%clk 0:00:09]}  Rc1 {[%clk 0:00:04]} 48. Kd2 {[%clk 0:00:09]}  Rh1 {[%clk 0:00:04]} 49. Na4 {[%clk 0:00:07]}  Ke7 {[%clk 0:00:04]} 50. Nxb6 {[%clk 0:00:06]}  g3 {[%clk 0:00:04]} 51. Bf3 {[%clk 0:00:06]}  Rh2+ {[%clk 0:00:04]} 52. Ke3 {[%clk 0:00:05]}  Ra2 {[%clk 0:00:03]} 53. c5 {[%clk 0:00:04]}  dxc5 {[%clk 0:00:03]} 54. d6+ {[%clk 0:00:04]}  Kxd6 {[%clk 0:00:02]} 55. Nc4+ {[%clk 0:00:05]}  Ke7 {[%clk 0:00:03]} 56. b6 {[%clk 0:00:05]}  Bc8 {[%clk 0:00:02]} 57. Ne5 {[%clk 0:00:06]}  g2 {[%clk 0:00:02]} 58. Bxg2 {[%clk 0:00:06]}  Rxg2 {[%clk 0:00:03]} 59. Nc6+ {[%clk 0:00:06]}  Kd6 {[%clk 0:00:04]} 60. Na7 {[%clk 0:00:06]}  Bb7 {[%clk 0:00:04]} 61. Nb5+ {[%clk 0:00:07]}  Kc6 {[%clk 0:00:05]} 62. Nc3 {[%clk 0:00:07]}  Kxb6 {[%clk 0:00:05]} 63. Ne2 {[%clk 0:00:08]}  Kc7 {[%clk 0:00:05]} 64. Kd3 {[%clk 0:00:08]}  Ba6+ {[%clk 0:00:05]} 65. Ke3 {[%clk 0:00:08]}  Rxe2+ {[%clk 0:00:06]} 66. Kf3 {[%clk 0:00:08]}  Re6 {[%clk 0:00:06]} 0-1


[Site "https://www.chess.com"]

[Event "Titled Tuesday Blitz May 11 2021"]
[White "Ivic, Velimir"]
[Black "Pajeken, Jakob Leon"]
[WhiteFideId "950122"]
[BlackFideId "12942839"]
[WhiteElo "2509"]
[BlackElo "2024"]
[Result "1-0"]
[Round "03"]
[TimeControl "180+1"]
[Date "2021.05.11"]
[WhiteClock "0:00:16"]
[BlackClock "0:00:26"]

1. d4 {[%clk 0:03:00]}  d5 {[%clk 0:02:59]} 2. Bf4 {[%clk 0:03:00]}  Nf6 {[%clk 0:02:59]} 3. e3 {[%clk 0:03:00]}  c5 {[%clk 0:02:59]} 4. c3 {[%clk 0:03:01]}  e6 {[%clk 0:02:58]} 5. Nd2 {[%clk 0:03:01]}  Nc6 {[%clk 0:02:55]} 6. Ngf3 {[%clk 0:03:00]}  Be7 {[%clk 0:02:50]} 7. Bd3 {[%clk 0:03:00]}  Nh5 {[%clk 0:02:50]} 8. Be5 {[%clk 0:02:56]}  f6 {[%clk 0:02:50]} 9. Nh4 {[%clk 0:02:29]}  g6 {[%clk 0:02:26]} 10. Bg3 {[%clk 0:02:27]}  Nxg3 {[%clk 0:02:24]} 11. hxg3 {[%clk 0:02:27]}  Kf7 {[%clk 0:02:17]} 12. Qc2 {[%clk 0:02:25]}  f5 {[%clk 0:02:16]} 13. Nhf3 {[%clk 0:02:21]}  b6 {[%clk 0:02:10]} 14. Bb5 {[%clk 0:02:16]}  Nb8 {[%clk 0:02:06]} 15. Ne5+ {[%clk 0:02:15]}  Kg7 {[%clk 0:02:05]} 16. g4 {[%clk 0:02:13]}  Ba6 {[%clk 0:02:01]} 17. a4 {[%clk 0:02:08]}  Bxb5 {[%clk 0:01:57]} 18. axb5 {[%clk 0:02:09]}  a5 {[%clk 0:01:55]} 19. bxa6 {[%clk 0:02:06]}  Rxa6 {[%clk 0:01:54]} 20. Rxa6 {[%clk 0:02:03]}  Nxa6 {[%clk 0:01:55]} 21. gxf5 {[%clk 0:02:03]}  exf5 {[%clk 0:01:54]} 22. Qa4 {[%clk 0:02:02]}  Nc7 {[%clk 0:01:53]} 23. Ndf3 {[%clk 0:01:59]}  Qd6 {[%clk 0:01:51]} 24. O-O {[%clk 0:01:32]}  Ra8 {[%clk 0:01:47]} 25. Qc2 {[%clk 0:01:33]}  c4 {[%clk 0:01:45]} 26. b3 {[%clk 0:01:31]}  b5 {[%clk 0:01:45]} 27. bxc4 {[%clk 0:01:31]}  bxc4 {[%clk 0:01:45]} 28. Rb1 {[%clk 0:01:31]}  Qa6 {[%clk 0:01:35]} 29. Qb2 {[%clk 0:01:27]}  Ne8 {[%clk 0:01:18]} 30. Qb7 {[%clk 0:01:15]}  Qxb7 {[%clk 0:01:14]} 31. Rxb7 {[%clk 0:01:16]}  Kf8 {[%clk 0:01:14]} 32. Nd7+ {[%clk 0:01:15]}  Kg8 {[%clk 0:01:11]} 33. Nb6 {[%clk 0:00:47]}  Ra1+ {[%clk 0:01:10]} 34. Kh2 {[%clk 0:00:48]}  Bd6+ {[%clk 0:01:07]} 35. Ne5 {[%clk 0:00:49]}  Nf6 {[%clk 0:01:06]} 36. f3 {[%clk 0:00:48]}  Re1 {[%clk 0:00:53]} 37. Nc8 {[%clk 0:00:45]}  Bf8 {[%clk 0:00:49]} 38. Rf7 {[%clk 0:00:31]}  Ne8 {[%clk 0:00:43]} 39. Ne7+ {[%clk 0:00:28]}  Bxe7 {[%clk 0:00:42]} 40. Rxe7 {[%clk 0:00:28]}  Nf6 {[%clk 0:00:43]} 41. Nc6 {[%clk 0:00:21]}  g5 {[%clk 0:00:37]} 42. Re5 {[%clk 0:00:20]}  Kf7 {[%clk 0:00:36]} 43. Rxf5 {[%clk 0:00:18]}  Rxe3 {[%clk 0:00:36]} 44. Ne5+ {[%clk 0:00:19]}  Ke6 {[%clk 0:00:36]} 45. Rxf6+ {[%clk 0:00:20]}  Ke7 {[%clk 0:00:31]} 46. Rh6 {[%clk 0:00:17]}  Rxc3 {[%clk 0:00:30]} 47. Rxh7+ {[%clk 0:00:18]}  Ke8 {[%clk 0:00:30]} 48. Kg3 {[%clk 0:00:17]}  Rc1 {[%clk 0:00:28]} 49. Kg4 {[%clk 0:00:18]}  c3 {[%clk 0:00:28]} 50. Kf5 {[%clk 0:00:18]}  Kd8 {[%clk 0:00:27]} 51. Ke6 {[%clk 0:00:16]}  Kc8 {[%clk 0:00:25]} 52. Kd6 {[%clk 0:00:16]}  Kb8 {[%clk 0:00:26]} 53. Rc7 {[%clk 0:00:15]}  c2 {[%clk 0:00:26]} 54. Nc6+ {[%clk 0:00:16]} 1-0


[Site "https://www.chess.com"]

[Event "Titled Tuesday Blitz May 11 2021"]
[White "Janaszak, Dawid"]
[Black "Pakleza, Zbigniew"]
[WhiteFideId "1119206"]
[BlackFideId "1119290"]
[WhiteElo "2332"]
[BlackElo "2526"]
[Result "1-0"]
[Round "03"]
[TimeControl "180+1"]
[Date "2021.05.11"]
[WhiteClock "0:00:43"]
[BlackClock "0:00:22"]

1. d4 {[%clk 0:03:00]}  d6 {[%clk 0:02:59]} 2. Bg5 {[%clk 0:02:59]}  h6 {[%clk 0:02:56]} 3. Bf4 {[%clk 0:02:54]}  Nd7 {[%clk 0:02:56]} 4. Nc3 {[%clk 0:02:53]}  e5 {[%clk 0:02:54]} 5. Bg3 {[%clk 0:02:49]}  exd4 {[%clk 0:02:31]} 6. Qxd4 {[%clk 0:02:50]}  Ngf6 {[%clk 0:02:31]} 7. e4 {[%clk 0:02:47]}  g6 {[%clk 0:02:09]} 8. O-O-O {[%clk 0:02:39]}  Bg7 {[%clk 0:02:09]} 9. Nf3 {[%clk 0:02:23]}  Nh5 {[%clk 0:02:05]} 10. Qd2 {[%clk 0:02:21]}  Nxg3 {[%clk 0:01:57]} 11. hxg3 {[%clk 0:02:22]}  Nb6 {[%clk 0:01:41]} 12. e5 {[%clk 0:02:11]}  Be6 {[%clk 0:01:19]} 13. exd6 {[%clk 0:02:08]}  cxd6 {[%clk 0:01:13]} 14. Nd4 {[%clk 0:02:05]}  Bg4 {[%clk 0:01:03]} 15. Bb5+ {[%clk 0:02:03]}  Kf8 {[%clk 0:01:03]} 16. Rde1 {[%clk 0:01:59]}  Qf6 {[%clk 0:00:57]} 17. Re4 {[%clk 0:01:38]}  h5 {[%clk 0:00:55]} 18. Rhe1 {[%clk 0:01:25]}  Bh6 {[%clk 0:00:48]} 19. f4 {[%clk 0:01:24]}  Kg7 {[%clk 0:00:44]} 20. Re7 {[%clk 0:01:12]}  Rac8 {[%clk 0:00:42]} 21. Rxb7 {[%clk 0:01:00]}  h4 {[%clk 0:00:42]} 22. Ne4 {[%clk 0:00:48]}  Qd8 {[%clk 0:00:42]} 23. Nc6 {[%clk 0:00:43]}  Rxc6 {[%clk 0:00:30]} 24. Bxc6 {[%clk 0:00:44]}  Rf8 {[%clk 0:00:22]} 25. Qd4+ {[%clk 0:00:43]} 1-0


[Site "https://www.chess.com"]

[Event "Titled Tuesday Blitz May 11 2021"]
[White "Jarovinsky, Alexey"]
[Black "Barp, Alberto"]
[WhiteFideId "14115131"]
[BlackFideId "872555"]
[WhiteElo "2446"]
[BlackElo "2229"]
[Result "1-0"]
[Round "03"]
[TimeControl "180+1"]
[Date "2021.05.11"]
[WhiteClock "0:00:38"]
[BlackClock "0:00:41"]

1. Nc3 {[%clk 0:03:00]}  d5 {[%clk 0:02:55]} 2. e4 {[%clk 0:03:00]}  c6 {[%clk 0:02:51]} 3. g3 {[%clk 0:02:59]}  dxe4 {[%clk 0:02:49]} 4. Nxe4 {[%clk 0:02:59]}  Nf6 {[%clk 0:02:48]} 5. Bg2 {[%clk 0:02:58]}  Bf5 {[%clk 0:02:47]} 6. Qe2 {[%clk 0:02:56]}  Nxe4 {[%clk 0:02:47]} 7. Bxe4 {[%clk 0:02:55]}  Bxe4 {[%clk 0:02:48]} 8. Qxe4 {[%clk 0:02:56]}  Qd5 {[%clk 0:02:49]} 9. d3 {[%clk 0:02:55]}  Nd7 {[%clk 0:02:48]} 10. Nf3 {[%clk 0:02:51]}  Qxe4+ {[%clk 0:02:45]} 11. dxe4 {[%clk 0:02:52]}  e6 {[%clk 0:02:45]} 12. Be3 {[%clk 0:02:48]}  Nf6 {[%clk 0:02:41]} 13. Nd2 {[%clk 0:02:47]}  Ng4 {[%clk 0:02:38]} 14. Bd4 {[%clk 0:02:44]}  e5 {[%clk 0:02:35]} 15. Bc3 {[%clk 0:02:44]}  Bc5 {[%clk 0:02:35]} 16. f3 {[%clk 0:02:33]}  Ne3 {[%clk 0:02:31]} 17. Rc1 {[%clk 0:02:31]}  f6 {[%clk 0:02:24]} 18. Ke2 {[%clk 0:02:18]}  O-O-O {[%clk 0:02:22]} 19. b3 {[%clk 0:01:47]}  Rd7 {[%clk 0:02:17]} 20. a4 {[%clk 0:01:41]}  g5 {[%clk 0:02:01]} 21. Nf1 {[%clk 0:01:28]}  Nxf1 {[%clk 0:01:59]} 22. Rcxf1 {[%clk 0:01:24]}  Bd4 {[%clk 0:01:55]} 23. Be1 {[%clk 0:01:22]}  h5 {[%clk 0:01:35]} 24. h4 {[%clk 0:01:19]}  Rg7 {[%clk 0:01:35]} 25. Rh2 {[%clk 0:00:59]}  Kd7 {[%clk 0:01:31]} 26. hxg5 {[%clk 0:00:52]}  fxg5 {[%clk 0:01:26]} 27. Rfh1 {[%clk 0:00:50]}  Rgh7 {[%clk 0:01:13]} 28. Bd2 {[%clk 0:00:48]}  Ke6 {[%clk 0:00:51]} 29. Bxg5 {[%clk 0:00:47]}  b5 {[%clk 0:00:49]} 30. g4 {[%clk 0:00:37]}  bxa4 {[%clk 0:00:41]} 31. bxa4 {[%clk 0:00:38]} 1-0


[Site "https://www.chess.com"]

[Event "Titled Tuesday Blitz May 11 2021"]
[White "Kamsky, Gata"]
[Black "Vakhlamov, Igor L."]
[WhiteFideId "2000024"]
[BlackFideId "24126748"]
[WhiteElo "2644"]
[BlackElo "2405"]
[Result "1-0"]
[Round "03"]
[TimeControl "180+1"]
[Date "2021.05.11"]
[WhiteClock "0:00:19"]
[BlackClock "0:00:06"]

1. e4 {[%clk 0:03:00]}  c5 {[%clk 0:02:59]} 2. Nf3 {[%clk 0:03:00]}  Nc6 {[%clk 0:02:59]} 3. d4 {[%clk 0:02:58]}  cxd4 {[%clk 0:03:00]} 4. Nxd4 {[%clk 0:02:57]}  g6 {[%clk 0:03:01]} 5. c4 {[%clk 0:02:56]}  Nf6 {[%clk 0:03:00]} 6. Nc3 {[%clk 0:02:56]}  d6 {[%clk 0:03:00]} 7. Be2 {[%clk 0:02:55]}  Nxd4 {[%clk 0:03:01]} 8. Qxd4 {[%clk 0:02:54]}  Bg7 {[%clk 0:03:02]} 9. O-O {[%clk 0:02:49]}  O-O {[%clk 0:03:02]} 10. Qe3 {[%clk 0:02:44]}  Be6 {[%clk 0:02:44]} 11. Bd2 {[%clk 0:02:42]}  a6 {[%clk 0:02:25]} 12. a4 {[%clk 0:02:36]}  Rc8 {[%clk 0:02:25]} 13. b3 {[%clk 0:02:26]}  Ng4 {[%clk 0:02:23]} 14. Bxg4 {[%clk 0:02:24]}  Bxg4 {[%clk 0:02:24]} 15. h3 {[%clk 0:02:02]}  Be6 {[%clk 0:02:18]} 16. Rad1 {[%clk 0:02:00]}  Re8 {[%clk 0:02:15]} 17. f4 {[%clk 0:01:51]}  Bd7 {[%clk 0:02:03]} 18. Nd5 {[%clk 0:01:49]}  b5 {[%clk 0:01:17]} 19. cxb5 {[%clk 0:01:41]}  axb5 {[%clk 0:01:18]} 20. a5 {[%clk 0:01:40]}  Bc6 {[%clk 0:01:18]} 21. Nb6 {[%clk 0:01:36]}  Rb8 {[%clk 0:01:18]} 22. Rc1 {[%clk 0:01:29]}  Bb7 {[%clk 0:01:18]} 23. b4 {[%clk 0:01:19]}  e6 {[%clk 0:01:13]} 24. Bc3 {[%clk 0:01:14]}  Bxc3 {[%clk 0:01:08]} 25. Rxc3 {[%clk 0:01:13]}  d5 {[%clk 0:01:08]} 26. Rd1 {[%clk 0:00:59]}  Qe7 {[%clk 0:00:55]} 27. exd5 {[%clk 0:00:37]}  Qxb4 {[%clk 0:00:55]} 28. d6 {[%clk 0:00:36]}  Qxa5 {[%clk 0:00:50]} 29. Nd7 {[%clk 0:00:34]}  b4 {[%clk 0:00:30]} 30. Rc7 {[%clk 0:00:29]}  Qa2 {[%clk 0:00:28]} 31. Rd2 {[%clk 0:00:21]}  Qa1+ {[%clk 0:00:22]} 32. Kh2 {[%clk 0:00:21]}  Bd5 {[%clk 0:00:15]} 33. Nxb8 {[%clk 0:00:21]}  Rxb8 {[%clk 0:00:16]} 34. d7 {[%clk 0:00:22]}  Qa8 {[%clk 0:00:14]} 35. Rdc2 {[%clk 0:00:21]}  b3 {[%clk 0:00:08]} 36. Rc8+ {[%clk 0:00:21]}  Kg7 {[%clk 0:00:07]} 37. Qe5+ {[%clk 0:00:20]}  f6 {[%clk 0:00:08]} 38. Qxb8 {[%clk 0:00:19]}  Qxb8 {[%clk 0:00:07]} 39. Rxb8 {[%clk 0:00:19]}  bxc2 {[%clk 0:00:06]} 40. d8=Q {[%clk 0:00:19]}  c1=Q {[%clk 0:00:06]} 41. Qf8# {[%clk 0:00:19]} 1-0


[Site "https://www.chess.com"]

[Event "Titled Tuesday Blitz May 11 2021"]
[White "Kazakouski, Valery"]
[Black "Nakamura, Hikaru"]
[WhiteFideId "13507443"]
[BlackFideId "2016192"]
[WhiteElo "2719"]
[BlackElo "3186"]
[Result "0-1"]
[Round "03"]
[TimeControl "180+1"]
[Date "2021.05.11"]
[WhiteClock "0:00:20"]
[BlackClock "0:01:26"]

1. d4 {[%clk 0:03:00]}  g6 {[%clk 0:02:59]} 2. e4 {[%clk 0:02:58]}  Bg7 {[%clk 0:02:58]} 3. Nc3 {[%clk 0:02:58]}  a6 {[%clk 0:02:58]} 4. a4 {[%clk 0:02:57]}  d6 {[%clk 0:02:59]} 5. g3 {[%clk 0:02:57]}  b6 {[%clk 0:02:56]} 6. Bg2 {[%clk 0:02:57]}  Bb7 {[%clk 0:02:57]} 7. Nge2 {[%clk 0:02:58]}  c5 {[%clk 0:02:57]} 8. Be3 {[%clk 0:02:57]}  cxd4 {[%clk 0:02:57]} 9. Bxd4 {[%clk 0:02:57]}  Nf6 {[%clk 0:02:56]} 10. O-O {[%clk 0:02:54]}  e5 {[%clk 0:02:51]} 11. Be3 {[%clk 0:02:52]}  O-O {[%clk 0:02:51]} 12. Nc1 {[%clk 0:02:29]}  Qc7 {[%clk 0:02:47]} 13. N1a2 {[%clk 0:02:27]}  Nc6 {[%clk 0:02:42]} 14. h3 {[%clk 0:02:27]}  Bc8 {[%clk 0:02:28]} 15. Qd2 {[%clk 0:02:16]}  Be6 {[%clk 0:02:28]} 16. Rfd1 {[%clk 0:02:16]}  Rfd8 {[%clk 0:02:28]} 17. Nd5 {[%clk 0:02:13]}  Bxd5 {[%clk 0:02:25]} 18. exd5 {[%clk 0:02:13]}  Ne7 {[%clk 0:02:26]} 19. b3 {[%clk 0:01:58]}  Rac8 {[%clk 0:02:20]} 20. c4 {[%clk 0:01:55]}  a5 {[%clk 0:02:17]} 21. Nc3 {[%clk 0:01:52]}  Nf5 {[%clk 0:02:17]} 22. Nb5 {[%clk 0:01:50]}  Qb7 {[%clk 0:02:17]} 23. Bg5 {[%clk 0:01:49]}  h6 {[%clk 0:02:16]} 24. Bxf6 {[%clk 0:01:49]}  Bxf6 {[%clk 0:02:17]} 25. Be4 {[%clk 0:01:47]}  Ne7 {[%clk 0:02:13]} 26. Qxh6 {[%clk 0:01:46]}  Bg7 {[%clk 0:02:13]} 27. Qd2 {[%clk 0:01:40]}  f5 {[%clk 0:02:13]} 28. Bc2 {[%clk 0:01:41]}  Qd7 {[%clk 0:02:08]} 29. Qe2 {[%clk 0:01:33]}  Kf7 {[%clk 0:02:06]} 30. Kg2 {[%clk 0:01:32]}  Rh8 {[%clk 0:02:06]} 31. h4 {[%clk 0:01:31]}  Ng8 {[%clk 0:02:02]} 32. Qe3 {[%clk 0:01:24]}  Rb8 {[%clk 0:02:02]} 33. Rh1 {[%clk 0:01:21]}  Nf6 {[%clk 0:02:03]} 34. Rae1 {[%clk 0:01:18]}  Qd8 {[%clk 0:01:56]} 35. Qf3 {[%clk 0:01:15]}  Qd7 {[%clk 0:01:54]} 36. Qe2 {[%clk 0:01:05]}  Rbe8 {[%clk 0:01:48]} 37. Qe3 {[%clk 0:01:04]}  Qd8 {[%clk 0:01:48]} 38. Qf3 {[%clk 0:01:03]}  Kg8 {[%clk 0:01:46]} 39. h5 {[%clk 0:00:59]}  e4 {[%clk 0:01:41]} 40. Qf4 {[%clk 0:00:58]}  Nxh5 {[%clk 0:01:42]} 41. Qxd6 {[%clk 0:00:59]}  Qg5 {[%clk 0:01:42]} 42. Rh4 {[%clk 0:00:25]}  Be5 {[%clk 0:01:35]} 43. Qd7 {[%clk 0:00:23]}  Re7 {[%clk 0:01:31]} 44. Rxh5 {[%clk 0:00:20]}  Qxh5 {[%clk 0:01:26]} 0-1


[Site "https://www.chess.com"]